[Event "POR-ch Women Absolute 2019"]
[Site "Portimao"]
[Date "2019.09.08"]
[Round "1.1"]
[White "Leite, Marta Sofia Carvalho"]
[Black "Pipiras, Filipa Fortuna"]
[Result "0-1"]
[ECO "B26"]
[WhiteElo "1722"]
[BlackElo "1965"]
[Annotator "NA"]
[PlyCount "110"]
[EventDate "2019.09.08"]
[EventType "swiss"]
[EventCountry "POR"]
[SourceTitle "playchess.com"]
[Source "ChessBase"]
[SourceQuality "1"]
[TimeControl "5400+30"]

1. e4 {[%emt 0:00:00]} c5 {[%emt 0:00:35]} 2. Nc3 {[%emt 0:00:00]} Nc6 {[%emt 0:00:25]} 3. d3 {[%emt 0:00:47]} g6 {[%emt 0:02:35]} 4. g3 {[%emt 0:03:07]} Bg7 {[%emt 0:00:23]} 5. Bg2 {[%emt 0:00:51]} d6 {[%emt 0:00:44]} 6. Nge2 {[%emt 0:00:30]} e5 {[%emt 0:01:59]} 7. O-O {[%emt 0:02:58]} Nge7 {[%emt 0:00:37]} 8. Be3 {[%emt 0:01:09]} O-O {[%emt 0:00:19]} 9. Qd2 {[%emt 0:01:26]} Rb8 {[%emt 0:03:40]} 10. f4 {[%emt 0:04:35]} Nd4 {[%emt 0:02:11]} 11. fxe5 {[%emt 0:06:11]} dxe5 {[%emt 0:00:34]} 12. Nd5 {[%emt 0:16:53]} Nxd5 {[%emt 0:12:11]} 13. exd5 {[%emt 0:02:17]} b6 {[%emt 0:00:33]} 14. c4 {[%emt 0:05:55]} Nf5 {[%emt 0:02:18]} 15. Bf2 {[%emt 0:02:57]} Bh6 {[%emt 0:03:52]} 16. Qc3 {[%emt 0:06:38]} Ne3 {[%emt 0:08:52]} 17. Bxe3 {[%emt 0:12:24]} Bxe3+ {[%emt 0:00:07]} 18. Kh1 {[%emt 0:00:05]} Qd6 {[%emt 0:01:57]} 19. Qe1 {[%emt 0:10:16]} Bh6 {[%emt 0:06:35]} 20. Nc3 {[%emt 0:01:37]} Bg7 {[%emt 0:00:48]} 21. Ne4 {[%emt 0:01:07]} Qd8 {[%emt 0:00:48]} 22. Qf2 {[%emt 0:01:20]} f5 {[%emt 0:01:26]} 23. Nc3 {[%emt 0:00:23]} a6 {[%emt 0:02:12]} 24. Rac1 {[%emt 0:05:13]} Qd6 {[%emt 0:01:17]} 25. b3 {[%emt 0:02:17]} Bd7 {[%emt 0:05:57]} 26. a4 {[%emt 0:01:34]} Rbe8 {[%emt 0:02:30]} 27. Qd2 {[%emt 0:01:39]} h5 {[%emt 0:03:13]} 28. Rce1 {[%emt 0:02:13]} Kh7 {[%emt 0:04:25]} 29. Nb1 {[%emt 0:02:29]} Bf6 {[%emt 0:05:06]} 30. Qf2 {[%emt 0:01:01]} h4 {[%emt 0:03:19]} 31. Nd2 {[%emt 0:00:29]} hxg3 {[%emt 0:00:51]} 32. Qxg3 {[%emt 0:00:30]} Qe7 {[%emt 0:04:22]} 33. Re2 {[%emt 0:01:41]} Bh4 {[%emt 0:02:09]} 34. Qh3 {[%emt 0:00:48]} Kg7 {[%emt 0:02:16]} 35. Bf3 {[%emt 0:02:06]} Bf6 {[%emt 0:04:19]} 36. Qg3 {[%emt 0:00:19]} Rh8 {[%emt 0:00:48]} 37. Rg1 {[%emt 0:00:27]} g5 {[%emt 0:01:09]} 38. Bg2 {[%emt 0:00:26]} Kf7 {[%emt 0:00:35]} 39. Nf3 {[%emt 0:00:18]} g4 {[%emt 0:00:21]} 40. Nd2 {[%emt 0:00:53]} f4 {[%emt 0:00:17]} 41. Qe1 {[%emt 0:00:33]} Rxh2+ {[%emt 0:01:27]} 42. Kxh2 {[%emt 0:00:06]} Rh8+ {[%emt 0:00:01]} 43. Bh3 {[%emt 0:00:14]} Rxh3+ {[%emt 0:00:06]} 44. Kg2 {[%emt 0:00:06]} f3+ {[%emt 0:00:06]} 45. Kf1 {[%emt 0:01:07]} fxe2+ {[%emt 0:00:11]} 46. Qxe2 {[%emt 0:00:04]} Bf5 {[%emt 0:00:42]} 47. Ne4 {[%emt 0:00:49]} Rf3+ {[%emt 0:00:21]} 48. Ke1 {[%emt 0:00:18]} Bg7 {[%emt 0:02:40]} 49. Rh1 {[%emt 0:02:24]} Bxe4 {[%emt 0:01:56]} 50. Qxe4 {[%emt 0:00:19]} Qg5 {[%emt 0:00:08]} 51. Kd1 {[%emt 0:01:07]} Qf5 {[%emt 0:00:40]} 52. Ke2 {[%emt 0:00:31]} Qxe4+ {[%emt 0:00:33]} 53. dxe4 {[%emt 0:00:13]} Rf6 {[%emt 0:00:23]} 54. Rg1 {[%emt 0:00:16]} Rf4 {[%emt 0:00:27]} 55. Rg3 {[%emt 0:00:33]} Rxe4+ {[%emt 0:00:07]} 0-1

[Event "POR-ch Women Absolute 2019"]
[Site "Portimao"]
[Date "2019.09.08"]
[Round "1.2"]
[White "Jorge, Rita Maria Osorio"]
[Black "Soares, Sara Joana De Moura "]
[Result "1/2-1/2"]
[ECO "C84"]
[WhiteElo "1957"]
[BlackElo "1533"]
[Annotator "NA"]
[PlyCount "152"]
[EventDate "2019.09.08"]
[EventType "swiss"]
[EventCountry "POR"]
[SourceTitle "playchess.com"]
[Source "ChessBase"]
[SourceQuality "1"]
[TimeControl "5400+30"]

1. e4 {[%emt 0:00:00]} e5 {[%emt 0:00:42]} 2. Nf3 {[%emt 0:00:00]} Nc6 {[%emt 0:00:09]} 3. Bb5 {[%emt 0:00:00]} a6 {[%emt 0:00:13]} 4. Ba4 {[%emt 0:00:00]} Nf6 {[%emt 0:00:07]} 5. O-O {[%emt 0:00:08]} Be7 {[%emt 0:00:34]} 6. d3 {[%emt 0:00:20]} b5 {[%emt 0:00:06]} 7. Bb3 {[%emt 0:00:09]} O-O {[%emt 0:00:11]} 8. a4 {[%emt 0:00:17]} Bb7 {[%emt 0:01:09]} 9. Nc3 {[%emt 0:01:35]} b4 {[%emt 0:07:29]} 10. Nd5 {[%emt 0:00:34]} Re8 {[%emt 0:01:07]} 11. a5 {[%emt 0:06:02]} h6 {[%emt 0:11:25]} 12. h3 {[%emt 0:05:32]} Bf8 {[%emt 0:05:08]} 13. Be3 {[%emt 0:11:57]} Nxd5 {[%emt 0:21:23]} 14. Bxd5 {[%emt 0:01:55]} Qf6 {[%emt 0:12:21]} 15. Nh2 {[%emt 0:05:25]} Nd8 {[%emt 0:10:01]} 16. Bb3 {[%emt 0:05:05]} c6 {[%emt 0:07:05]} 17. Ng4 {[%emt 0:17:43]} Qg6 {[%emt 0:02:35]} 18. Qf3 {[%emt 0:16:57]} h5 {[%emt 0:02:40]} 19. Nh2 {[%emt 0:01:07]} Ne6 {[%emt 0:00:27]} 20. c3 {[%emt 0:09:43]} Be7 {[%emt 0:01:54]} 21. Bd1 {[%emt 0:01:19]} h4 {[%emt 0:02:14]} 22. Ng4 {[%emt 0:01:09]} Ng5 {[%emt 0:02:41]} 23. Bxg5 {[%emt 0:02:45]} Qxg5 {[%emt 0:01:46]} 24. Bb3 {[%emt 0:00:47]} Rf8 {[%emt 0:00:47]} 25. d4 {[%emt 0:01:14]} exd4 {[%emt 0:04:15]} 26. cxd4 {[%emt 0:00:10]} d5 {[%emt 0:00:08]} 27. exd5 {[%emt 0:04:41]} cxd5 {[%emt 0:00:21]} 28. Rfe1 {[%emt 0:01:04]} Bd6 {[%emt 0:04:12]} 29. Ne3 {[%emt 0:00:39]} Rad8 {[%emt 0:00:17]} 30. Nf5 {[%emt 0:03:14]} Qg6 {[%emt 0:00:58]} 31. Nxh4 {[%emt 0:00:35]} Qg5 {[%emt 0:00:27]} 32. Nf5 {[%emt 0:00:05]} Qf6 {[%emt 0:00:10]} 33. Qg4 {[%emt 0:01:40]} Bc8 {[%emt 0:00:26]} 34. Bc2 {[%emt 0:00:55]} g6 {[%emt 0:00:36]} 35. Qh4 {[%emt 0:00:18]} Qxh4 {[%emt 0:00:42]} 36. Nxh4 {[%emt 0:00:01]} Rfe8 {[%emt 0:00:17]} 37. Nf3 {[%emt 0:01:19]} Rxe1+ {[%emt 0:00:37]} 38. Rxe1 {[%emt 0:00:15]} Bc7 {[%emt 0:00:01]} 39. Ne5 {[%emt 0:00:20]} Bb7 {[%emt 0:00:27]} 40. Nd3 {[%emt 0:01:10]} Bxa5 {[%emt 0:00:24]} 41. Re7 {[%emt 0:00:53]} Bc8 {[%emt 0:00:43]} 42. Ne5 {[%emt 0:00:08]} Rf8 {[%emt 0:00:27]} 43. Bb3 {[%emt 0:00:33]} Bd8 {[%emt 0:00:24]} 44. Rxf7 {[%emt 0:00:43]} Rxf7 {[%emt 0:00:30]} 45. Bxd5 {[%emt 0:00:06]} Bb6 {[%emt 0:00:21]} 46. Nxf7 {[%emt 0:00:37]} Kg7 {[%emt 0:00:29]} 47. Nd6 {[%emt 0:00:19]} Bd7 {[%emt 0:00:15]} 48. b3 {[%emt 0:01:03]} Bxd4 {[%emt 0:00:10]} 49. Nc4 {[%emt 0:00:57]} Bb5 {[%emt 0:00:55]} 50. Nd6 {[%emt 0:00:46]} Bd7 {[%emt 0:00:23]} 51. g4 {[%emt 0:00:15]} a5 {[%emt 0:00:13]} 52. Ne4 {[%emt 0:00:36]} a4 {[%emt 0:01:18]} 53. bxa4 {[%emt 0:00:01]} Bxa4 {[%emt 0:00:01]} 54. Nd2 {[%emt 0:00:38]} Bc3 {[%emt 0:00:35]} 55. Ne4 {[%emt 0:00:05]} Bd4 {[%emt 0:00:27]} 56. Ba2 {[%emt 0:00:29]} Bc2 {[%emt 0:00:20]} 57. Nd2 {[%emt 0:00:04]} Bc3 {[%emt 0:00:24]} 58. Nb3 {[%emt 0:00:24]} Be5 {[%emt 0:00:27]} 59. Nc5 {[%emt 0:00:15]} Bd6 {[%emt 0:00:56]} 60. Ne6+ {[%emt 0:00:33]} Kh6 {[%emt 0:00:39]} 61. Nd4 {[%emt 0:00:19]} Bd1 {[%emt 0:00:30]} 62. Kg2 {[%emt 0:00:21]} Be5 {[%emt 0:00:34]} 63. Nb3 {[%emt 0:00:47]} Kg5 {[%emt 0:00:52]} 64. Nc5 {[%emt 0:00:17]} Kh6 {[%emt 0:00:23]} 65. Bc4 {[%emt 0:01:15]} Bd4 {[%emt 0:00:42]} 66. Nb3 {[%emt 0:01:07]} Bxb3 {[%emt 0:00:41]} 67. Bxb3 {[%emt 0:00:01]} g5 {[%emt 0:00:08]} 68. h4 {[%emt 0:00:25]} Be5 {[%emt 0:00:14]} 69. Kh3 {[%emt 0:00:34]} Bf4 {[%emt 0:00:23]} 70. Bd5 {[%emt 0:00:26]} Bd6 {[%emt 0:00:18]} 71. h5 {[%emt 0:00:26]} Be5 {[%emt 0:00:13]} 72. Kg2 {[%emt 0:00:15]} Bf4 {[%emt 0:00:08]} 73. Kf3 {[%emt 0:00:07]} Bb8 {[%emt 0:00:17]} 74. Ke4 {[%emt 0:00:11]} Bf4 {[%emt 0:00:13]} 75. Kd4 {[%emt 0:00:42]} Bh2 {[%emt 0:00:13]} 76. Kc4 {[%emt 0:00:07]} Bd6 {[%emt 0:00:06]} 1/2-1/2

[Event "POR-ch Women Absolute 2019"]
[Site "Portimao"]
[Date "2019.09.08"]
[Round "1.3"]
[White "Duque, Raquel Dos Santos"]
[Black "Silva, Mariana Sofia T."]
[Result "0-1"]
[ECO "A22"]
[WhiteElo "1415"]
[BlackElo "1882"]
[Annotator "NA"]
[PlyCount "72"]
[EventDate "2019.09.08"]
[EventType "swiss"]
[EventCountry "POR"]
[SourceTitle "playchess.com"]
[Source "ChessBase"]
[SourceQuality "1"]
[TimeControl "5400+30"]

1. c4 {[%emt 0:00:00]} e5 {[%emt 0:00:00]} 2. Nc3 {[%emt 0:00:00]} Nf6 {[%emt 0:00:00]} 3. g3 {[%emt 0:00:04]} Bb4 {[%emt 0:00:33]} 4. Bg2 {[%emt 0:00:38]} O-O {[%emt 0:01:39]} 5. a3 {[%emt 0:00:51]} Bxc3 {[%emt 0:00:44]} 6. bxc3 {[%emt 0:00:16]} c6 {[%emt 0:03:51]} 7. Nf3 {[%emt 0:01:10]} Re8 {[%emt 0:01:49]} 8. O-O {[%emt 0:00:58]} d5 {[%emt 0:02:51]} 9. cxd5 {[%emt 0:01:30]} cxd5 {[%emt 0:00:12]} 10. Rb1 {[%emt 0:00:18]} Nc6 {[%emt 0:01:41]} 11. d3 h6 {[%emt 0:08:30]} 12. Nd2 {[%emt 0:04:36]} e4 {[%emt 0:04:54]} 13. Qc2 {[%emt 0:03:41]} Qe7 {[%emt 0:02:31]} 14. Nb3 Bf5 15. d4 {[%emt 0:18:45]} Bg6 {[%emt 0:06:49]} 16. e3 {[%emt 0:00:26]} Rec8 {[%emt 0:04:18]} 17. Qd2 {[%emt 0:05:51]} Nd7 {[%emt 0:07:55]} 18. a4 {[%emt 0:03:09]} Nb6 {[%emt 0:03:22]} 19. Qa2 {[%emt 0:00:54]} Nc4 {[%emt 0:00:55]} 20. Nd2 {[%emt 0:01:00]} N6a5 {[%emt 0:01:11]} 21. Nxc4 {[%emt 0:06:14]} Nxc4 {[%emt 0:00:12]} 22. Rb5 {[%emt 0:00:45]} Qd7 {[%emt 0:02:54]} 23. Ba3 {[%emt 0:01:44]} b6 {[%emt 0:03:01]} 24. Rfb1 {[%emt 0:03:27]} Rc7 {[%emt 0:04:03]} 25. Bc1 {[%emt 0:07:23]} Rac8 {[%emt 0:02:29]} 26. Bf1 {[%emt 0:01:29]} Bf5 {[%emt 0:02:44]} 27. Bd2 {[%emt 0:06:59]} Nxd2 {[%emt 0:02:03]} 28. Qxd2 {[%emt 0:00:10]} Rxc3 {[%emt 0:00:16]} 29. Qa2 {[%emt 0:00:10]} Be6 {[%emt 0:00:18]} 30. a5 {[%emt 0:00:20]} Rc1 {[%emt 0:05:56]} 31. axb6 {[%emt 0:04:16]} axb6 {[%emt 0:01:20]} 32. Rxb6 {[%emt 0:00:46]} Bh3 {[%emt 0:04:34]} 33. Qb2 {[%emt 0:00:35]} Qc7 {[%emt 0:03:27]} 34. Rb7 {[%emt 0:03:12]} Qc4 {[%emt 0:06:05]} 35. Rxc1 {[%emt 0:01:37]} Qxc1 {[%emt 0:00:07]} 36. Qb1 {[%emt 0:02:13]} Bxf1 {[%emt 0:00:44]} 0-1

[Event "POR-ch Women Absolute 2019"]
[Site "Portimao"]
[Date "2019.09.08"]
[Round "1.4"]
[White "Silva, Ana Ines Teixeira Da"]
[Black "Cymbron, Victoria"]
[Result "1-0"]
[ECO "C45"]
[WhiteElo "1738"]
[BlackElo "1069"]
[Annotator "NA"]
[PlyCount "89"]
[EventDate "2019.09.08"]
[EventType "swiss"]
[EventCountry "POR"]
[SourceTitle "playchess.com"]
[Source "ChessBase"]
[SourceQuality "1"]
[TimeControl "5400+30"]

1. e4 {[%emt 0:00:00]} e5 {[%emt 0:00:00]} 2. Nf3 {[%emt 0:00:00]} Nc6 {[%emt 0:00:05]} 3. d4 {[%emt 0:00:00]} exd4 {[%emt 0:00:45]} 4. Nxd4 {[%emt 0:00:03]} Bc5 {[%emt 0:01:17]} 5. Be3 {[%emt 0:00:09]} Bxd4 {[%emt 0:03:34]} 6. Bxd4 {[%emt 0:00:37]} Nf6 {[%emt 0:00:56]} 7. Nc3 {[%emt 0:03:41]} Qe7 {[%emt 0:04:15]} 8. Bxf6 {[%emt 0:01:10]} Qxf6 {[%emt 0:00:35]} 9. Be2 {[%emt 0:03:45]} O-O {[%emt 0:00:48]} 10. O-O {[%emt 0:00:58]} a6 {[%emt 0:01:04]} 11. Qd2 {[%emt 0:03:18]} d6 {[%emt 0:02:02]} 12. Nd5 {[%emt 0:06:33]} Qg6 {[%emt 0:05:11]} 13. Kh1 {[%emt 0:04:37]} Qxe4 {[%emt 0:02:09]} 14. Nxc7 {[%emt 0:04:55]} Rb8 {[%emt 0:01:52]} 15. Bf3 {[%emt 0:04:53]} Qe5 {[%emt 0:03:13]} 16. c3 {[%emt 0:08:55]} Bf5 {[%emt 0:04:19]} 17. Rfe1 {[%emt 0:02:46]} Qf6 {[%emt 0:04:40]} 18. Bxc6 {[%emt 0:03:39]} bxc6 {[%emt 0:00:38]} 19. Nxa6 {[%emt 0:00:15]} Ra8 {[%emt 0:02:45]} 20. Nb4 {[%emt 0:00:18]} d5 {[%emt 0:01:26]} 21. a4 {[%emt 0:02:12]} Rfd8 {[%emt 0:03:56]} 22. Qe3 {[%emt 0:12:54]} h6 {[%emt 0:01:03]} 23. Qc5 {[%emt 0:02:25]} Qd6 {[%emt 0:06:17]} 24. Re8+ {[%emt 0:04:10]} Kh7 {[%emt 0:02:14]} 25. Qxd6 {[%emt 0:00:08]} Rxd6 {[%emt 0:00:25]} 26. Rxa8 {[%emt 0:00:08]} c5 {[%emt 0:01:21]} 27. Ra6 {[%emt 0:02:53]} Rd7 {[%emt 0:01:16]} 28. Nc6 {[%emt 0:02:04]} d4 {[%emt 0:01:53]} 29. cxd4 {[%emt 0:00:49]} cxd4 {[%emt 0:00:31]} 30. Rd1 {[%emt 0:00:53]} Rd6 {[%emt 0:01:35]} 31. Rxd4 {[%emt 0:02:16]} Re6 {[%emt 0:00:27]} 32. h3 {[%emt 0:00:21]} Re2 {[%emt 0:03:48]} 33. Rf4 {[%emt 0:00:35]} Be6 {[%emt 0:01:51]} 34. b4 {[%emt 0:00:55]} Rb2 {[%emt 0:01:32]} 35. b5 {[%emt 0:00:25]} Bb3 {[%emt 0:02:42]} 36. b6 {[%emt 0:01:11]} Bd5 {[%emt 0:01:12]} 37. Nb4 {[%emt 0:00:41]} Rd2 {[%emt 0:01:32]} 38. Nxd5 {[%emt 0:00:21]} Rxd5 {[%emt 0:00:47]} 39. b7 {[%emt 0:00:17]} Rd8 {[%emt 0:00:13]} 40. Ra8 {[%emt 0:00:14]} Rxa8 {[%emt 0:00:21]} 41. bxa8=Q {[%emt 0:00:10]} f6 {[%emt 0:00:32]} 42. Qe4+ {[%emt 0:00:20]} Kg8 {[%emt 0:00:32]} 43. Qg6 {[%emt 0:00:17]} Kh8 {[%emt 0:00:36]} 44. Re4 {[%emt 0:00:10]} f5 {[%emt 0:00:38]} 45. Re8# {[%emt 0:00:12]} 1-0